bitfinex/quotes_ETHUSD_20260108
["timestamp","ask_amount","ask_price","bid_price","bid_amount"]
[1767885361015,6.47962158,3086.6,3085.2,6.4825619]
[1767885361760,6.47962158,3086.6,3085.3,0.9161165]
[1767885362050,0.64796216,3086.5,3085.3,0.94852825]
[1767885362252,3.23975472,3086.7,3085.3,1.04296618]
[1767885362460,6.47950944,3086.7,3085.3,0.9161165]
[1767885362945,0.002,3085.8,3085.3,0.9161165]
[1767885363149,0.002,3085.8,3085.4,3.24107084]
[1767885363444,0.002,3086.1,3085.4,7.44554522]
[1767885363650,0.002,3086.1,3085.5,0.74455452]
[1767885363854,1e-08,3087.2,3086.3,0.96340354]
[1767885364162,0.92458741,3088.1,3086.3,0.96340354]
[1767885364163,0.92458741,3088.1,3086.9,1.05784147]
[1767885364164,0.002,3088.1,3086.9,1.05784147]
[1767885364367,0.32600561,3088.1,3086.9,1.05784147]
[1767885364661,0.002,3088.1,3087.0,1.05784147]
[1767885364823,0.85,3088.1,3086.5,0.96340354]
[1767885365027,0.002,3088.1,3086.8,0.91743822]
[1767885365260,0.85,3088.1,3086.8,0.91743822]
[1767885365459,0.85,3088.1,3086.6,3.23978942]
[1767885365663,0.98942023,3087.8,3085.4,15.41743822]
[1767885365862,0.98942023,3087.6,3085.6,0.91743822]
[1767885366163,0.98942023,3087.6,3084.7,3.24173923]
[1767885366164,4.40342023,3086.9,3084.7,3.24173923]
[1767885366481,4.40342023,3086.9,3084.8,0.94985523]
[1767885366640,0.848,3086.8,3085.4,3.24097294]
[1767885366833,0.848,3086.8,3085.5,3.24092451]
[1767885367032,3.23970583,3086.7,3085.5,0.64818975]
[1767885367231,3.23970583,3086.7,3085.5,3.24093019]
[1767885367962,4.08761587,3086.8,3085.5,3.24093019]
[1767885367963,3.23907621,3087.3,3085.6,0.91743822]
[1767885368143,4.08700024,3087.4,3085.8,0.91743822]
[1767885368542,0.848,3087.4,3085.9,1.01187615]
[1767885369165,7.32600136,3087.4,3085.6,0.846]
[1767885369363,0.73260014,3087.3,3085.9,6.48105173]
[1767885370262,0.73260014,3087.3,3085.9,7.39848995]
[1767885370474,0.848,3087.4,3086.2,0.91743822]
[1767885371130,0.002,3088.1,3086.5,1.01187615]
[1767885371545,0.002,3088.1,3086.7,0.09443793]
[1767885371748,0.002,3088.1,3086.8,1.01187615]
[1767885371949,0.002,3088.1,3086.8,0.91743822]
[1767885371950,3.24025775,3088.1,3086.8,0.91743822]
[1767885372159,3.24025775,3088.1,3086.5,0.09443793]
[1767885372160,0.32402578,3088.0,3086.5,0.09443793]
[1767885372342,0.32402578,3088.0,3086.7,0.09443793]
[1767885372661,0.002,3088.1,3086.5,0.09443793]
[1767885372896,0.002,3088.1,3086.3,14.5044589]
[1767885373166,0.002,3088.1,3086.3,11.57825328]
[1767885373465,0.002,3088.1,3086.3,10.73225328]
[1767885374032,0.002,3088.1,3086.4,0.0324002]
[1767885374234,0.64782645,3088.0,3086.3,3.24012571]
[1767885374633,0.98942023,3087.9,3086.3,3.2401169]
[1767885374833,0.98942023,3087.9,3085.8,0.91743822]
[1767885375075,0.98942023,3087.9,3086.0,3.24039581]
[1767885375247,0.98942023,3087.7,3085.5,0.846]
[1767885375564,0.98942023,3087.7,3085.3,0.91743822]
[1767885375565,0.98942023,3087.4,3085.3,0.91743822]
[1767885376077,0.98942023,3087.4,3085.8,0.001]
[1767885376273,0.848,3087.3,3085.8,3.56578443]
[1767885376471,0.848,3087.3,3085.9,0.03240545]
[1767885376635,0.848,3087.3,3086.0,0.0324044]
[1767885376959,0.848,3087.3,3085.8,3.56578443]
[1767885377159,6.47836226,3087.2,3085.8,6.80643515]
[1767885377361,0.73263623,3087.1,3085.9,0.03240545]
[1767885377569,0.73263623,3087.1,3085.8,3.59819093]
[1767885377749,0.73263623,3087.1,3085.8,6.80643515]
[1767885378133,0.73263623,3087.1,3085.8,0.32518153]
[1767885378331,0.98942023,3087.0,3085.8,0.001]
[1767885378643,0.73263623,3087.1,3084.9,0.94985418]
[1767885378853,0.73263623,3087.1,3085.3,3.24110554]
[1767885379172,1.72205646,3087.1,3085.3,3.24110554]
[1767885379476,11.18605107,3087.0,3085.3,3.88935448]
[1767885379681,11.18605107,3087.0,3085.3,3.24110554]
[1767885380379,11.18605107,3087.0,3085.3,6.48228143]
[1767885380748,7.94666008,3087.0,3085.3,7.39971965]
[1767885380949,0.848,3086.9,3085.4,0.94984892]
[1767885381151,1.83742023,3086.9,3085.3,3.24110554]
[1767885381350,3.23960088,3086.8,3085.4,0.0324107]
[1767885381650,6.47920176,3086.8,3085.3,6.48228143]
[1767885381866,0.73271276,3086.7,3085.4,0.97235327]
[1767885382079,0.73271276,3086.7,3085.3,6.48228143]
[1767885382848,0.73271276,3086.7,3085.2,3.24123934]
[1767885383158,0.73271276,3086.7,3085.2,6.48252029]
[1767885383779,6.47962158,3086.6,3085.2,6.48252029]
[1767885384183,3.23981079,3086.6,3085.3,0.03241175]
[1767885384393,7.32762158,3086.6,3085.4,0.6514932]
[1767885384847,0.73263623,3087.1,3085.5,0.03240965]
[1767885385048,3.97193176,3087.1,3085.5,1.01187615]
[1767885385251,3.23881906,3087.6,3085.8,0.91743822]
[1767885385476,3.23881906,3087.6,3086.1,1.01187615]
[1767885385683,0.002,3087.8,3086.3,1.01187615]
[1767885385890,0.002,3087.8,3086.7,0.09443793]
[1767885386094,0.002,3087.8,3086.8,0.38666436]
[1767885386681,0.002,3087.8,3086.9,0.09443793]
[1767885386861,0.002,3087.8,3086.8,0.38666436]
[1767885387062,0.002,3087.8,3086.9,0.09443793]
[1767885387266,0.002,3087.8,3086.9,1.01187615]
[1767885387764,0.002,3088.1,3087.1,0.09443793]
[1767885387963,0.002,3088.1,3087.2,0.65732199]
[1767885389792,0.002,3088.1,3087.3,9.71722863]
[1767885390305,0.002,3087.5,3087.3,3.23907621]
[1767885390588,0.002,3088.1,3087.3,6.47815242]
[1767885390801,0.002,3088.5,3087.5,3.86664355]
[1767885391005,0.002,3088.5,3087.7,0.09443793]
[1767885391357,0.002,3089.1,3087.7,0.09443793]
[1767885391573,0.002,3089.1,3088.2,0.09443793]
[1767885391766,0.002,3089.4,3088.5,9.71345313]
[1767885391972,3.86664355,3091.3,3088.5,9.71345313]
[1767885391973,0.002,3090.1,3088.8,0.09443793]
[1767885392194,0.002,3090.1,3088.8,0.94043793]
[1767885392414,0.002,3090.1,3088.9,0.18578762]
[1767885392575,0.002,3090.1,3089.2,0.09443793]
[1767885392986,0.002,3090.1,3089.0,0.09443793]
[1767885393376,0.002,3090.1,3089.5,0.90360425]
[1767885393599,0.16894961,3091.4,3089.5,0.90360425]
[1767885393600,1.01694961,3091.4,3089.6,0.846]
[1767885393800,3.23488499,3091.3,3089.7,6.47312036]
[1767885394010,6.46976998,3091.3,3089.6,3.79825664]
[1767885394305,0.90004358,3091.2,3089.4,0.846]
[1767885394602,0.90004358,3091.2,3089.1,0.846]
[1767885394812,0.90004358,3091.0,3089.0,1.74960425]
[1767885395109,0.90004358,3090.8,3089.0,0.846]
[1767885395309,0.90004358,3090.8,3089.3,3.23690794]
[1767885395466,0.848,3090.7,3089.0,1.74960425]
[1767885395663,0.848,3090.7,3089.2,0.90360425]
[1767885395910,7.36981356,3091.3,3089.2,0.90360425]
[1767885395911,7.36981356,3091.3,3089.4,3.23681434]
[1767885396132,0.73698136,3091.2,3089.5,0.42756316]
[1767885396405,0.73698136,3091.2,3089.7,0.09443793]
[1767885396995,0.73698136,3091.2,3089.7,0.99804218]
[1767885397952,6.4698456,3091.3,3089.8,6.47291086]
[1767885398565,6.4698456,3091.3,3089.7,3.23653119]
[1767885398766,0.848,3091.2,3089.7,8.22169562]
[1767885398993,4.30316588,3092.0,3089.7,11.4582558]
[1767885399211,7.3155145,3091.9,3089.8,0.90360425]
[1767885399371,0.90004358,3091.7,3089.7,3.23653119]
[1767885399564,0.90004358,3091.7,3089.7,6.47309137]
[1767885399888,1.68544878,3091.8,3090.3,6.47186356]
[1767885400194,4.08141145,3091.8,3090.3,6.47186356]
[1767885400400,0.847,3091.8,3090.3,7.31686356]
[1767885400595,4.08138523,3091.8,3090.3,7.31686356]
[1767885400908,7.31577046,3091.8,3090.3,3.23593178]
[1767885401089,7.31577046,3091.8,3090.2,4.1395588]
[1767885401090,0.40813852,3091.7,3090.2,3.23602031]
[1767885401407,1.3081821,3091.7,3090.1,3.23612032]
[1767885401613,1.3081821,3091.7,3090.2,6.47204324]
[1767885401815,0.40813852,3091.7,3090.2,6.47204324]
[1767885402030,0.00185644,3092.5,3090.5,0.90360425]
[1767885402186,1.74704358,3092.4,3090.5,0.99804218]
[1767885402387,1.74704358,3092.4,3090.6,0.845]
[1767885403142,1.74704358,3092.4,3090.5,0.90360425]
[1767885403429,1.74704358,3092.4,3090.6,0.845]
[1767885403638,1.14499106,3092.3,3090.7,0.17486043]
[1767885403788,0.847,3092.2,3090.7,0.17486043]
[1767885403987,1.14499106,3092.3,3090.9,0.90360425]
[1767885404306,0.00185644,3092.5,3091.9,3.77220562]
[1767885404538,0.847,3093.7,3092.0,0.37722056]
[1767885404693,7.31178757,3093.7,3092.0,0.37722056]
[1767885404890,7.31178757,3093.7,3091.9,1.74860425]
[1767885405106,4.07937547,3093.7,3091.9,1.74860425]
[1767885405316,0.002,3093.0,3092.0,4.67580987]
[1767885405631,0.002,3093.0,3092.0,0.90360425]
[1767885406124,3.23173912,3094.4,3091.8,4.61720562]
[1767885406125,1.40752125,3095.0,3092.8,4.67580987]
[1767885406298,1.40752125,3095.0,3093.0,0.90360425]
[1767885406299,0.54328084,3094.9,3093.0,0.90360425]
[1767885406637,0.54328084,3094.9,3092.5,0.90360425]
[1767885406638,0.90004358,3094.8,3092.5,0.90360425]
[1767885406847,0.90004358,3094.5,3092.1,3.23404805]
[1767885406993,0.99448151,3094.5,3092.1,7.3130961]
[1767885407195,0.99448151,3094.0,3091.9,4.0792394]
[1767885407489,0.99448151,3094.0,3091.9,3.23423775]
[1767885407490,0.847,3093.9,3091.9,3.23423775]
[1767885407693,0.847,3093.9,3091.5,0.90360425]
[1767885407694,0.09443793,3093.5,3091.5,0.90360425]
[1767885408047,0.99448151,3093.5,3091.7,3.23442949]
[1767885408342,7.3123779,3093.4,3091.7,0.64690883]
[1767885408548,10.54506685,3093.4,3091.4,10.06215575]
[1767885408846,0.847,3093.3,3091.4,10.06215575]
[1767885408990,0.847,3093.2,3091.5,0.90360425]
[1767885409191,0.847,3093.2,3091.8,3.59259505]
[1767885409418,0.847,3093.2,3091.5,0.90360425]
[1767885409590,0.847,3093.2,3091.6,1.096576]
[1767885409795,0.847,3093.2,3091.3,4.07985293]
[1767885410108,9.69806685,3093.4,3091.3,10.90733297]
[1767885410443,0.90004358,3093.6,3092.3,0.09443793]
[1767885410444,0.847,3093.6,3092.3,0.09443793]
[1767885410628,3.23133098,3094.7,3092.8,0.09443793]
[1767885410936,3.23133098,3094.7,3093.1,0.09443793]
[1767885411135,6.46249852,3094.8,3093.0,3.59259505]
[1767885411290,6.46249852,3094.8,3093.1,0.845]
[1767885411494,9.69374778,3094.8,3092.9,0.845]
[1767885411724,0.96937478,3094.7,3092.9,1.01986043]
[1767885412228,6.4628708,3094.6,3092.7,4.43759505]
[1767885412449,6.4628708,3094.6,3092.5,0.90360425]
[1767885412597,6.4628708,3094.6,3092.6,0.845]
[1767885412797,9.6943062,3094.6,3092.7,0.845]
[1767885412998,1.0663681,3094.5,3092.7,0.845]
[1767885413316,1.0663681,3094.5,3092.2,0.09443793]
[1767885413317,4.49263863,3094.3,3092.0,0.90360425]
[1767885413636,4.49263863,3094.3,3092.4,0.845]
[1767885413793,0.90004358,3094.3,3092.0,0.90360425]
[1767885413994,0.90004358,3094.3,3092.1,0.845]
[1767885414206,13.37667642,3094.2,3092.2,0.17486043]
[1767885414406,0.90004358,3093.9,3091.9,0.845]
[1767885414637,3.59259505,3093.6,3091.7,0.845]
[1767885414931,0.90004358,3093.7,3091.8,0.03234361]
[1767885415131,0.18414815,3093.6,3091.8,0.03234361]
[1767885415502,1.08419173,3093.6,3091.5,0.03234675]
[1767885415909,0.90004358,3093.3,3091.4,0.845]
[1767885416148,6.46600496,3093.1,3091.3,0.845]
[1767885416433,3.23300248,3093.1,3091.4,0.93595205]
[1767885416633,0.40790025,3093.0,3091.5,0.17809521]
[1767885417199,0.40790025,3093.0,3091.3,0.845]
[1767885417399,0.40790025,3093.0,3091.1,0.845]
[1767885417636,0.40790025,3093.0,3091.1,0.87735094]
[1767885418245,6.46642308,3092.9,3091.2,3.23498964]
[1767885418448,6.46642308,3092.9,3091.8,0.001]
[1767885418615,0.77203233,3092.8,3091.8,0.001]
[1767885419309,0.77203233,3092.8,3090.9,0.90360425]
[1767885419310,0.90004358,3092.7,3090.9,0.03235303]
[1767885419528,0.77203233,3092.8,3091.1,4.4961993]
[1767885419712,0.77203233,3092.8,3091.5,4.4961993]
[1767885419913,3.64105309,3093.0,3091.6,0.44961993]
[1767885419914,6.87420593,3093.0,3091.6,0.44961993]
[1767885420323,6.87420593,3093.0,3091.1,0.844]
[1767885420324,4.49263863,3092.9,3091.1,0.844]
[1767885420501,1.74604358,3092.8,3090.7,0.03235512]
[1767885420701,0.846,3092.9,3091.5,3.23464555]
[1767885420906,6.87420593,3093.0,3091.7,0.90360425]
[1767885420907,0.40790025,3093.0,3091.7,0.90360425]
[1767885421158,6.46625316,3093.0,3091.7,0.844]
[1767885421306,6.46625316,3093.0,3090.0,2.23984687]
[1767885421307,10.54539931,3093.0,3090.7,0.90360425]
[1767885421637,0.90004358,3092.9,3090.7,0.90360425]
[1767885421931,0.99448151,3092.7,3090.7,0.93595937]
[1767885422135,9.70088922,3092.5,3090.5,3.23571643]
[1767885422336,1.7846511,3092.4,3090.4,0.844]
[1767885422570,1.14855403,3092.3,3090.4,4.07980701]
[1767885422704,1.14855403,3092.3,3090.3,3.88310606]
[1767885422705,0.9386511,3092.2,3090.3,0.64720432]
[1767885422906,0.9386511,3092.2,3090.1,4.14068517]
[1767885422907,3.59259505,3091.0,3090.1,0.001]
[1767885423124,3.68703298,3091.4,3090.1,0.001]
[1767885423339,0.9386511,3091.7,3090.1,0.001]
[1767885423553,0.00326,3092.1,3090.1,0.001]
[1767885423554,0.00326,3092.1,3090.7,3.59259505]
[1767885423848,0.00326,3092.1,3090.4,3.23582707]
[1767885423849,0.00326,3092.1,3091.1,3.59259505]
[1767885424210,0.00326,3092.1,3091.3,3.23488499]
[1767885424512,0.00326,3092.1,3090.9,0.03235303]
[1767885425029,0.00326,3092.1,3091.2,6.46993854]
[1767885425226,0.00326,3092.1,3091.3,0.03234884]
[1767885425444,0.00326,3092.1,3091.2,6.50228843]
[1767885425747,0.00326,3092.1,3091.3,0.65022884]
[1767885425951,0.846,3093.1,3091.3,1.72213066]
[1767885426107,0.03235842,3093.0,3091.3,1.62769273]
[1767885426307,0.846,3092.9,3091.4,6.5019085]
[1767885426507,0.40791444,3092.8,3091.5,0.84530687]
[1767885426807,0.03235842,3092.7,3091.3,3.88510033]
[1767885427023,0.03235842,3092.7,3091.3,0.68257768]
[1767885427225,0.03235842,3092.7,3091.3,3.23484653]
[1767885427538,0.03235842,3092.7,3091.2,0.87734989]
[1767885427741,0.03235842,3092.7,3091.2,0.845]
[1767885427941,0.40791444,3092.8,3091.2,0.845]
[1767885427942,0.40791444,3092.8,3091.4,0.97746389]
[1767885428173,0.846,3093.1,3091.5,2.09069778]
[1767885428383,0.03235842,3093.2,3091.6,11.13363905]
[1767885428536,0.846,3093.2,3091.7,0.03234466]
[1767885429162,0.03235842,3093.1,3091.5,1.08088715]
[1767885429478,0.94680438,3093.1,3091.2,4.07994722]
[1767885429635,1.0937264,3093.0,3091.3,0.03234884]
[1767885429836,0.03235842,3092.9,3091.3,0.03234884]
[1767885430038,0.94680438,3092.9,3090.7,0.97746389]
[1767885430239,0.94680438,3092.9,3090.1,0.001]
[1767885430240,0.91444596,3092.2,3090.1,0.001]
[1767885430460,0.91444596,3092.0,3090.1,0.001]
[1767885430660,0.91444596,3092.0,3090.1,3.23708123]
[1767885430872,0.03235842,3091.9,3090.1,0.001]
[1767885431172,4.76656357,3091.8,3090.1,0.001]
[1767885431374,0.4798922,3091.7,3090.1,0.001]
[1767885431746,0.846,3091.6,3091.5,0.001]
[1767885431946,0.846,3091.6,3090.1,0.001]
[1767885432147,0.91444596,3091.4,3090.1,0.001]
[1767885432472,4.08088499,3091.3,3090.1,0.001]
[1767885432655,0.03235842,3091.7,3090.1,0.001]
[1767885432996,0.846,3091.8,3090.2,0.97746389]
[1767885433304,3.23373431,3092.4,3090.5,3.59259505]
[1767885433577,3.23533322,3092.8,3090.9,4.57005894]
[1767885433892,0.002,3093.1,3091.8,0.09443793]
[1767885434438,0.002,3093.1,3091.9,3.23425725]
[1767885434644,0.002,3093.1,3091.9,6.4685145]
[1767885434844,0.002,3093.1,3092.0,0.09443793]
[1767885435066,0.002,3093.1,3092.2,0.09443793]
[1767885435582,0.846,3093.8,3092.4,0.09443793]
[1767885436354,0.40782126,3093.7,3092.4,0.09443793]
[1767885436583,3.64022935,3093.7,3092.5,3.23362974]
[1767885436762,0.40782126,3093.7,3092.5,3.23362974]
[1767885436961,0.002,3094.2,3092.8,1.07190182]
[1767885437376,0.002,3094.2,3093.0,0.09443793]
[1767885437859,3.23388349,3094.2,3092.8,0.09443793]
[1767885438187,0.846,3094.1,3092.5,3.23362974]
[1767885438561,0.846,3094.1,3092.6,3.32793188]
[1767885438562,3.23206205,3094.0,3092.6,3.32793188]
[1767885438768,0.73100936,3093.9,3092.6,3.23349395]
[1767885439488,0.73100936,3093.9,3092.5,3.2335624]
[1767885439688,1.57700936,3093.9,3092.5,3.2335624]
[1767885439893,1.57700936,3093.9,3092.4,0.09443793]
[1767885440078,1.57700936,3093.9,3091.2,1.77338041]
[1767885440079,1.00888389,3093.6,3091.1,0.97746389]
[1767885440265,1.00888389,3093.4,3091.3,3.23486007]
[1767885440591,1.00888389,3093.4,3091.1,0.97746389]
[1767885440592,6.46600496,3093.1,3091.1,0.97746389]
[1767885440769,6.46600496,3093.1,3091.3,0.97746389]
[1767885441889,0.846,3093.0,3091.2,3.23497713]
[1767885442100,0.55450074,3092.9,3091.2,3.23497713]
[1767885442279,0.55450074,3092.9,3091.1,3.23504924]
[1767885442453,0.55450074,3092.9,3091.2,0.03234989]
[1767885442653,6.46663216,3092.8,3091.2,3.23492854]
[1767885444077,0.846,3092.7,3091.2,7.44738207]
[1767885444390,1.30938168,3092.7,3091.3,0.74473821]
[1767885444711,1.30938168,3092.7,3091.2,3.2673307]
[1767885444874,3.23352518,3092.6,3091.4,0.03234779]
[1767885445078,6.46705036,3092.6,3091.5,0.001]
[1767885445610,0.002,3092.5,3091.5,0.001]
[1767885446123,0.91644596,3092.5,3091.5,0.001]
[1767885446413,1.39449846,3092.4,3091.5,0.001]
[1767885446613,0.846,3092.3,3091.5,0.001]
[1767885446828,9.70183041,3092.2,3090.3,3.23593178]
[1767885446972,0.91444596,3092.1,3090.1,0.001]
[1767885447175,0.91444596,3091.9,3090.1,0.001]
[1767885447494,0.91444596,3091.7,3090.1,0.001]
[1767885447699,0.846,3091.6,3090.1,0.001]
[1767885448014,0.846,3091.5,3090.2,3.23598808]
[1767885448237,0.846,3091.4,3090.3,0.32369881]
[1767885448520,10.61627637,3092.2,3090.4,0.03235827]
[1767885448726,0.846,3092.1,3090.3,0.32369881]
[1767885449028,9.70245795,3092.0,3090.3,0.32369881]
[1767885449214,1.96929175,3091.9,3090.1,0.03336141]
[1767885449418,0.91444596,3091.8,3090.1,0.03336141]
[1767885450604,0.91444596,3091.8,3090.1,0.001]
[1767885450815,6.46893294,3091.7,3090.1,3.23711483]
[1767885451129,0.846,3091.6,3090.2,0.03236036]
[1767885451306,0.91444596,3091.8,3090.2,0.03236036]
[1767885451307,3.23440698,3091.8,3090.3,0.65056164]
[1767885451628,0.846,3091.7,3090.3,0.65056164]
[1767885451929,0.846,3091.7,3090.1,0.03336141]
[1767885451930,1.76044596,3091.7,3090.1,0.03336141]
[1767885452233,0.91444596,3091.6,3090.1,0.001]
[1767885452802,9.70434105,3091.4,3090.1,0.001]
[1767885454732,0.846,3091.3,3090.1,0.001]
[1767885455028,6.4701886,3091.1,3090.1,0.001]
[1767885455231,0.847,3091.0,3090.1,0.001]
[1767885456404,3.59772022,3090.9,3090.1,0.001]
[1767885456619,3.59772022,3090.9,3089.2,0.03237084]
[1767885457010,9.7062249,3090.8,3089.2,0.03237084]
[1767885457329,4.52302107,3090.1,3087.9,0.9335024]
[1767885457499,4.52302107,3089.7,3087.4,0.9335024]
[1767885457701,4.52302107,3089.7,3087.6,3.2386884]
[1767885457935,0.92530085,3089.5,3087.7,0.3562554]
[1767885458152,0.92530085,3089.5,3087.7,0.03238656]
[1767885458153,0.847,3089.4,3087.7,0.03238656]
[1767885458353,0.847,3089.4,3087.6,3.23869064]
[1767885458552,0.847,3089.4,3087.8,3.23851613]
[1767885458717,0.847,3089.4,3087.8,3.27090164]
[1767885458912,0.92530085,3089.3,3087.2,0.845]
[1767885459117,9.71156646,3089.1,3087.2,0.845]
[1767885459317,6.47437764,3089.1,3087.3,0.96589316]
[1767885459556,6.47437764,3089.1,3087.4,0.9335024]
[1767885459737,0.847,3089.0,3088.0,0.001]
[1767885461220,0.18667388,3089.2,3088.0,0.001]
[1767885461422,3.23718882,3089.1,3088.0,0.001]
[1767885461654,0.847,3089.0,3088.0,0.001]
[1767885463257,6.47479684,3088.9,3088.0,0.001]
[1767885463549,3.23708403,3089.2,3088.0,0.001]
[1767885463849,0.847,3089.1,3088.0,0.001]
[1767885464551,3.56079243,3089.2,3088.0,0.001]
[1767885464718,0.847,3089.0,3088.0,0.001]
[1767885465524,0.92530085,3089.9,3088.0,0.03338341]
[1767885465730,6.47291086,3089.8,3088.0,0.03338341]
[1767885466026,1.58682117,3089.7,3088.0,0.68443209]
[1767885466228,0.847,3089.6,3088.0,0.68443209]
[1767885466467,0.92530085,3089.5,3088.0,0.001]
[1767885466757,0.847,3089.4,3088.0,0.001]
[1767885466955,0.847,3089.3,3088.0,0.001]
[1767885467320,4.08410348,3089.2,3088.0,0.001]
[1767885467661,0.847,3089.1,3088.1,0.32394468]
[1767885468965,0.847,3089.1,3088.0,0.001]
[1767885469134,1.08530085,3089.0,3088.0,0.001]
[1767885469641,1.08530085,3089.0,3086.8,0.032396]
[1767885469642,0.92530085,3088.8,3086.9,0.96589735]
[1767885469858,0.847,3088.7,3087.0,0.9335024]
[1767885470073,6.47374894,3089.4,3087.2,0.9335024]
[1767885470365,1.49437489,3089.3,3087.4,0.9335024]
[1767885470574,1.49437489,3089.3,3087.6,0.9335024]
[1767885470770,1.49437489,3089.3,3087.7,0.03238656]
[1767885471462,6.47416806,3089.2,3087.7,0.03238656]
[1767885471621,9.71125209,3089.2,3087.7,0.03238656]
[1767885471826,1.1205627,3089.1,3087.4,0.03238971]
[1767885472023,1.1205627,3089.1,3087.3,3.23901876]
[1767885472232,2.14030148,3089.1,3087.1,4.7135024]
[1767885472435,0.92530085,3089.0,3086.6,0.9335024]
[1767885472635,0.09443793,3088.9,3086.8,3.23956328]
[1767885472849,0.09443793,3088.9,3086.9,0.03239495]
[1767885473469,0.847,3088.8,3086.9,0.03239495]
[1767885473676,13.04487013,3088.7,3087.0,0.32719582]
[1767885473975,9.80726208,3088.7,3087.0,0.32719582]
[1767885474175,0.847,3088.6,3087.0,0.32719582]
[1767885474380,3.23760805,3088.7,3088.3,0.001]
[1767885474577,3.23760805,3088.7,3087.2,0.9335024]
[1767885474578,0.847,3088.6,3087.2,0.9335024]
[1767885474765,0.847,3088.6,3087.3,0.03239076]
[1767885474970,3.23760805,3088.7,3087.3,0.96589316]
[1767885475277,3.23711489,3089.2,3087.3,0.96589316]
[1767885475278,3.23704872,3089.3,3087.3,0.96589316]
[1767885475467,6.47374894,3089.4,3087.3,0.96589316]
[1767885475776,0.25443793,3089.7,3087.3,0.96589316]
[1767885475777,1.17068745,3089.3,3087.6,0.9335024]
[1767885475943,0.847,3089.3,3087.7,0.03238656]
[1767885476580,0.847,3089.2,3087.7,0.03238656]
[1767885476893,0.847,3089.1,3087.7,0.03238656]
[1767885477289,0.847,3089.0,3087.7,0.03238656]
[1767885477790,4.08430695,3089.0,3087.8,3.23855171]
[1767885477986,4.08430695,3089.0,3087.9,0.68333662]
[1767885478189,0.92530085,3090.0,3087.9,0.68333662]
[1767885478380,10.55636629,3089.8,3087.9,0.68333662]
[1767885478584,6.47291086,3089.8,3087.9,0.68333662]
[1767885478802,0.847,3089.7,3088.0,0.9335024]
[1767885479002,0.847,3089.7,3087.9,0.68333662]
[1767885479003,0.71596498,3089.7,3088.1,0.96588477]
[1767885479214,0.847,3089.6,3088.1,0.96588477]
[1767885479427,0.847,3089.6,3088.1,0.9335024]
[1767885479571,0.847,3089.6,3088.1,0.96588477]
[1767885479771,3.2367697,3089.5,3088.2,6.47626448]
[1767885479992,3.2367697,3089.5,3088.3,0.7765952]
[1767885480301,0.92530085,3090.1,3088.3,0.7765952]
[1767885480302,3.23582707,3090.4,3088.4,0.9335024]
[1767885480487,0.847,3090.3,3088.5,0.9335024]
[1767885480663,1.02173878,3091.1,3088.7,0.9335024]
[1767885480664,3.23519896,3091.0,3088.7,0.9335024]
[1767885480864,0.92530085,3090.8,3088.6,0.48254644]
[1767885481067,0.92530085,3090.6,3088.3,1.6215952]
[1767885481283,0.09443793,3090.5,3088.4,0.9335024]
[1767885481604,0.847,3090.4,3088.6,0.9335024]
[1767885481903,6.47186356,3090.3,3088.7,3.23760805]
[1767885482469,9.70779534,3090.3,3088.6,4.17118706]
[1767885482705,1.05547953,3090.2,3088.7,0.41711871]
[1767885483300,1.05547953,3090.2,3088.6,3.23768061]
[1767885483867,3.23614122,3090.1,3088.6,0.03237712]
[1767885484169,0.847,3090.0,3088.6,0.93307687]
[1767885484478,0.847,3090.0,3088.6,0.96545399]
[1767885484865,0.847,3090.1,3088.6,0.96545399]
[1767885485063,0.002,3091.1,3088.6,0.96545399]
[1767885485398,4.082288,3091.0,3088.9,0.93687049]
[1767885485568,0.4084288,3090.9,3089.1,0.93687049]
[1767885485766,6.4708166,3090.8,3089.2,3.23708403]
[1767885486098,0.847,3090.7,3089.3,0.93687049]
[1767885486798,3.23537226,3090.9,3089.3,0.93687049]
[1767885486799,0.847,3090.8,3089.3,0.93687049]
[1767885487195,0.002,3089.7,3089.3,0.93687049]
[1767885487383,4.99756525,3090.9,3089.2,9.71125209]
[1767885487588,0.002,3090.0,3089.2,6.47416806]
[1767885487784,0.002,3090.0,3089.3,0.64741681]
[1767885487988,0.002,3090.0,3089.4,6.47374894]
[1767885488514,0.002,3090.0,3089.5,0.09443793]
[1767885488681,0.002,3091.1,3089.6,0.93687049]
[1767885489278,0.002,3091.1,3090.0,0.93687049]
[1767885489480,0.002,3091.1,3090.2,0.93687049]
[1767885489980,0.002,3091.1,3090.3,3.23593178]
[1767885490177,0.002,3091.1,3090.2,4.17288584]
[1767885490412,0.002,3091.1,3090.2,3.23601535]
[1767885491810,0.002,3091.1,3090.2,6.47205185]
[1767885492010,0.002,3091.1,3090.4,0.93687049]
[1767885492192,0.002,3091.1,3090.4,4.17264902]
[1767885492387,0.002,3091.1,3090.4,7.40847609]
[1767885493315,0.002,3091.1,3090.4,4.17264902]
[1767885494008,0.002,3091.1,3090.4,7.40847609]
[1767885494309,0.002,3091.1,3090.5,0.81493683]
[1767885494721,0.002,3091.4,3090.6,0.93687049]
[1767885495410,0.002,3091.4,3090.5,0.81493683]
[1767885495629,0.91719299,3092.7,3090.7,0.93687049]
[1767885495837,3.23376461,3092.4,3090.9,0.93687049]
[1767885495995,0.849,3092.5,3090.9,0.93687049]
[1767885495996,0.002,3092.5,3090.9,0.93687049]
[1767885496201,0.002,3092.5,3091.1,7.40705909]
[1767885496409,0.002,3092.5,3091.2,0.7501497]
[1767885497614,0.002,3092.5,3090.8,0.18763084]
[1767885497615,0.91519299,3092.4,3090.8,0.18763084]
[1767885497808,0.91519299,3092.4,3090.7,3.2354433]
[1767885498103,6.46767778,3092.3,3090.7,3.2354433]
[1767885498307,0.91519299,3091.9,3089.7,0.93687049]
[1767885498636,3.76514489,3092.0,3089.7,1.78187049]
[1767885498637,0.91519299,3091.7,3089.7,1.78187049]
[1767885498839,0.91519299,3091.7,3090.1,3.23607287]
[1767885499131,0.91519299,3091.7,3090.2,3.23603568]
[1767885499442,1.31503379,3091.8,3089.8,0.93687049]
[1767885499443,0.46803379,3091.8,3089.8,0.93687049]
[1767885499628,0.46803379,3091.8,3089.7,0.93943793]
[1767885499629,0.847,3091.7,3090.6,3.23555672]
[1767885499799,0.847,3091.7,3090.5,3.23567738]
[1767885500228,0.847,3091.7,3090.0,10.64557931]